fUSD/lending_fUSD_20250226
["ID","MTS","AMOUNT","RATE_DAILY","PERIOD"]
[354562729,1740575451717,-509.43978018,0.00041368,14]
[354562730,1740575451727,-1025.0,0.00041368,14]
[354562731,1740575451737,-1058.32,0.00041368,14]
[354562732,1740575451746,-839.71,0.00041368,14]
[354562733,1740575451756,-830.07,0.00041368,14]
[354562734,1740575451765,-287.92107377,0.00041368,14]
[354562735,1740575451775,-500.0,0.00041368,14]
[354562736,1740575451784,-799.42,0.00041368,14]
[354562737,1740575451794,-500.0,0.00041368,14]
[354562738,1740575451804,-2060.38,0.00041368,14]
[354562739,1740575451813,-500.0,0.00041368,14]
[354562740,1740575451823,-500.0,0.00041368,14]
[354562741,1740575451832,-1007.91,0.00041368,14]
[354562742,1740575451842,-876.82,0.00041368,14]
[354562743,1740575451851,-912.41,0.00041368,14]
[354562744,1740575451861,-548.15,0.00041368,14]
[354562745,1740575451870,-868.59,0.00041368,14]
[354562746,1740575451881,-500.0,0.00041368,14]
[354562747,1740575451891,-684.23,0.00041368,14]
[354562748,1740575451901,-785.3,0.00041368,14]
[354562749,1740575451910,-1791.66,0.00041368,14]
[354562750,1740575451920,-312.37552443,0.00041368,14]
[354562751,1740575451930,-502.93201453,0.00041368,14]
[354562752,1740575451942,-500.0,0.00041368,14]
[354562753,1740575451955,-500.0,0.00041368,14]
[354562754,1740575451965,-551.18,0.00041368,14]
[354562755,1740575451974,-1462.81,0.00041368,14]
[354562756,1740575451986,-691.92,0.00041368,14]
[354562757,1740575451996,-469.06954765,0.00041368,14]
[354562758,1740575452006,-1473.66,0.00041368,14]
[354562759,1740575452015,-805.09,0.00041368,14]
[354562760,1740575452025,-500.0,0.00041368,14]
[354562761,1740575452034,-564.41,0.00041368,14]
[354562762,1740575452044,-500.0,0.00041368,14]
[354562763,1740575452053,-945.45,0.00041368,14]
[354562764,1740575452063,-775.18,0.00041368,14]
[354562765,1740575452072,-658.16,0.00041368,14]
[354562766,1740575452082,-500.0,0.00041368,14]
[354562767,1740575452092,-508.03856528,0.00041368,14]
[354562768,1740575452101,-1588.91,0.00041368,14]
[354562769,1740575452111,-1264.29,0.00041368,14]
[354562770,1740575452120,-711.01,0.00041368,14]
[354562771,1740575452130,-694.67,0.00041368,14]
[354562772,1740575452141,-500.0,0.00041368,14]
[354562773,1740575452150,-1049.98,0.00041368,60]
[354562774,1740575452160,-500.0,0.00041368,14]
[354562775,1740575452170,-799.9,0.00041368,14]
[354562776,1740575452180,-500.0,0.00041368,14]
[354562777,1740575452189,-500.0,0.00041368,14]
[354562778,1740575452198,-556.35,0.00041368,14]
[354562779,1740575452208,-500.0,0.00041368,14]
[354562780,1740575452217,-1794.91,0.00041368,14]
[354562781,1740575452226,-1169.9,0.00041368,14]
[354562782,1740575452235,-327.99646017,0.00041368,14]
[354562783,1740575452245,-1360.03,0.00041368,14]
[354562784,1740575452254,-1362.42,0.00041368,14]
[354562785,1740575452263,-500.0,0.00041368,14]
[354562786,1740575452272,-500.0,0.00041368,14]
[354562787,1740575452282,-500.0,0.00041368,14]
[354562788,1740575452291,-949.52,0.00041368,14]
[354562789,1740575452301,-500.0,0.00041368,14]
[354562790,1740575452311,-500.0,0.00041368,14]
[354562791,1740575452320,-1299.68,0.00041368,14]
[354562792,1740575452330,-500.0,0.00041368,14]
[354562793,1740575452339,-627.5,0.00041368,14]
[354562794,1740575452348,-500.0,0.00041368,14]
[354562795,1740575452358,-500.0,0.00041368,14]
[354562796,1740575452367,-1287.96,0.00041368,14]
[354562797,1740575452378,-798.2,0.00041368,14]
[354562798,1740575452387,-500.0,0.00041368,14]
[354562799,1740575452396,-552.13,0.00041368,14]
[354562800,1740575452405,-3071.6,0.00041368,14]
[354562801,1740575452698,-606.72,0.00041368,14]
[354562802,1740575452711,-255.57723115,0.00041368,14]
[354562803,1740575452722,-2228.21,0.00041368,14]
[354562804,1740575452732,-500.0,0.00041368,14]
[354562805,1740575452741,-500.0,0.00041368,14]
[354562806,1740575452751,-1777.33,0.00041368,14]
[354562807,1740575452761,-793.61,0.00041368,14]
[354562808,1740575452771,-500.0,0.00041368,14]
[354562809,1740575452780,-10296.21,0.00041368,14]
[354562810,1740575452790,-1023.39,0.00041368,14]
[354562811,1740575452799,-500.0,0.00041368,14]
[354562812,1740575452808,-777.73,0.00041368,14]
[354562813,1740575452818,-3524.06,0.00041368,14]
[354562814,1740575452827,-864.44,0.00041368,14]
[354562815,1740575452837,-965.73,0.00041368,7]
[354562816,1740575452847,-711.47,0.00041368,14]
[354562817,1740575452856,-611.75,0.00041368,14]
[354562818,1740575452866,-899.53,0.00041368,14]
[354562819,1740575452875,-500.0,0.00041368,14]
[354562820,1740575452885,-500.0,0.00041368,14]
[354562821,1740575452894,-500.0,0.00041368,14]
[354562822,1740575452904,-3939.98,0.00041368,14]
[354562823,1740575452914,-761.03,0.00041368,14]
[354562824,1740575452923,-3008.42,0.00041368,14]
[354562825,1740575452932,-720.79,0.00041368,14]
[354562826,1740575452944,-506.31207863,0.00041368,14]
[354562827,1740575452955,-5721.31,0.00041368,14]
[354562828,1740575452964,-12055.1,0.00041368,14]
[354562829,1740575452974,-710.64,0.00041368,14]
[354562830,1740575452984,-500.0,0.00041368,14]
[354562831,1740575452993,-287.81,0.00041368,14]
[354562832,1740575453003,-500.0,0.00041368,14]
[354562833,1740575453014,-1540.72,0.00041368,14]
[354562834,1740575453023,-500.0,0.00041368,14]
[354562835,1740575453032,-500.0,0.00041368,14]
[354562836,1740575453053,-1490.27,0.00041368,14]
[354562837,1740575453063,-500.0,0.00041368,14]
[354562838,1740575453073,-3529.52,0.00041368,14]
[354562839,1740575453083,-500.0,0.00041368,14]
[354562840,1740575453093,-515.62,0.00041368,14]
[354562841,1740575453103,-500.0,0.00041368,14]
[354562842,1740575453113,-500.0,0.00041368,14]
[354562843,1740575453124,-2221.17,0.00041368,14]
[354562844,1740575453134,-8947.11,0.00041368,14]
[354562845,1740575453145,-2016.18,0.00041368,14]
[354562846,1740575453155,-701.76,0.00041368,14]
[354562847,1740575453166,-900.0,0.00041368,120]
[354562848,1740575453176,-500.0,0.00041368,14]
[354562849,1740575453185,-500.0,0.00041368,14]
[354562850,1740575453195,-3669.77,0.00041368,14]
[354562851,1740575453206,-500.0,0.00041368,14]
[354562852,1740575453216,-500.0,0.00041368,14]
[354562853,1740575453226,-500.0,0.00041368,14]
[354562854,1740575453236,-1329.17,0.00041368,14]
[354562855,1740575453246,-5453.89,0.00041368,14]
[354562856,1740575453256,-2984.46,0.00041368,14]
[354562857,1740575453266,-709.12,0.00041368,14]
[354562858,1740575453276,-3808.99,0.00041368,14]
[354562859,1740575453286,-1288.01,0.00041368,14]
[354562860,1740575453296,-500.0,0.00041368,14]
[354562861,1740575453305,-500.0,0.00041368,14]
[354562862,1740575453315,-1735.75,0.00041368,14]
[354562863,1740575453324,-500.0,0.00041368,14]
[354562864,1740575453334,-500.0,0.00041368,14]
[354562865,1740575453344,-929.59,0.00041368,14]
[354562866,1740575453354,-1946.43,0.00041368,14]
[354562867,1740575453364,-1866.03,0.00041368,14]
[354562868,1740575453374,-934.7,0.00041368,14]
[354562869,1740575453384,-709.76,0.00041368,14]
[354562870,1740575453394,-3708.47,0.00041368,14]
[354562871,1740575453403,-500.0,0.00041368,14]
[354562872,1740575453413,-1312.39,0.00041368,14]
[354562873,1740575453422,-1704.08,0.00041368,14]
[354562874,1740575453432,-713.87,0.00041368,14]
[354562875,1740575453442,-1401.72,0.00041368,14]
[354562876,1740575453451,-4142.94,0.00041368,14]
[354562877,1740575453462,-2401.25,0.00041368,14]
[354562878,1740575453472,-504.44839264,0.00041368,14]
[354562879,1740575453482,-778.73,0.00041368,14]
[354562880,1740575453491,-1801.16,0.00041368,14]
[354562881,1740575453501,-904.0,0.00041368,14]
[354562882,1740575453511,-500.0,0.00041368,14]
[354562883,1740575453521,-889.7,0.00041368,14]
[354562884,1740575453531,-2611.23,0.00041368,14]
[354562885,1740575453540,-500.0,0.00041368,14]
[354562886,1740575453550,-500.0,0.00041368,14]
[354562887,1740575453560,-621.4,0.00041368,14]
[354562888,1740575453569,-4835.15,0.00041368,14]
[354562889,1740575453579,-316.6005997,0.00041368,14]
[354562890,1740575453588,-500.0,0.00041368,14]
[354562891,1740575453598,-511.65745417,0.00041368,14]
[354562892,1740575453607,-500.0,0.00041368,14]
[354562893,1740575453617,-3095.21,0.00041368,14]
[354562894,1740575453627,-563.4,0.00041368,14]
[354562895,1740575453638,-2201.26,0.00041368,14]
[354562896,1740575453647,-500.0,0.00041368,14]
[354562897,1740575453657,-500.0,0.00041368,14]
[354562898,1740575453667,-500.0,0.00041368,14]
[354562899,1740575453676,-3437.26,0.00041368,14]
[354562900,1740575453687,-500.0,0.00041368,14]
[354562901,1740575453697,-500.0,0.00041368,14]
[354562902,1740575453707,-2638.84,0.00041368,14]
[354562903,1740575453717,-500.0,0.00041368,14]
[354562904,1740575453727,-500.0,0.00041368,14]
[354562905,1740575453737,-2540.82,0.00041368,14]
[354562906,1740575453747,-2112.29,0.00041368,14]
[354562907,1740575453758,-601.4,0.00041368,14]
[354562908,1740575453768,-1138.75,0.00041368,14]
[354562909,1740575453778,-1199.69,0.00041368,14]
[354562910,1740575453788,-1101.82,0.00041368,14]
[354562911,1740575453799,-586.68,0.00041368,14]
[354562912,1740575453809,-1658.49,0.00041368,14]
[354562913,1740575453819,-1547.98,0.00041368,14]
[354562914,1740575453829,-2977.93,0.00041368,14]
[354562915,1740575453839,-500.0,0.00041368,14]
[354562916,1740575453849,-500.0,0.00041368,14]
[354562917,1740575453858,-500.0,0.00041368,14]
[354562918,1740575453868,-500.0,0.00041368,14]
[354562919,1740575453878,-500.0,0.00041368,14]
[354562920,1740575453888,-500.0,0.00041368,14]
[354562921,1740575453897,-1676.92,0.00041368,14]
[354562922,1740575453907,-500.0,0.00041368,14]
[354562923,1740575453917,-2217.0,0.00041368,14]
[354562924,1740575453926,-3347.21,0.00041368,14]
[354562925,1740575453937,-252.53248494,0.00041368,14]
[354562926,1740575453952,-660.56,0.00041368,14]
[354562927,1740575453963,-2928.67,0.00041368,14]
[354562928,1740575453973,-951.82,0.00041368,14]
[354562929,1740575453983,-500.0,0.00041368,14]
[354562930,1740575453994,-500.0,0.00041368,14]
[354562931,1740575454004,-3518.54,0.00041368,14]
[354562932,1740575454015,-737.89,0.00041368,14]
[354562933,1740575454026,-1429.29,0.00041368,14]
[354562934,1740575454036,-1666.86,0.00041368,14]
[354562935,1740575454046,-1703.49,0.00041368,14]
[354562936,1740575454056,-503.11673418,0.00041368,14]
[354562937,1740575454066,-2111.44,0.00041368,14]
[354562938,1740575454076,-5163.43,0.00041368,14]
[354562939,1740575454085,-893.7,0.00041368,14]
[354562940,1740575454095,-960.89,0.00041368,14]
[354562941,1740575454105,-1131.82,0.00041368,14]
[354562942,1740575454115,-500.0,0.00041368,14]
[354562943,1740575454125,-3523.41,0.00041368,14]
[354562944,1740575454134,-530.37881878,0.00041368,14]
[354562945,1740575454144,-2093.77,0.00041368,14]
[354562946,1740575454154,-1951.44,0.00041368,14]
[354562947,1740575454164,-3458.43,0.00041368,14]
[354562948,1740575454174,-500.0,0.00041368,14]
[354562949,1740575454184,-1431.67,0.00041368,14]
[354562950,1740575454194,-2666.33,0.00041368,14]
[354562951,1740575454203,-500.0,0.00041368,14]
[354562952,1740575454213,-535.53593923,0.00041368,14]
[354562953,1740575454222,-153.0,0.00041369,2]
[354562954,1740575454232,-153.0,0.00041369,2]
[354562955,1740575454242,-502.66089181,0.00041369,14]
[354562956,1740575454251,-402.96296288,0.00041369,14]
[354562957,1740575454260,-500.0,0.00041369,14]
[354562958,1740575454270,-785.71,0.00041369,14]
[354562959,1740575454279,-500.0,0.00041369,14]
[354562960,1740575454289,-1036.76,0.00041369,14]
[354562961,1740575454298,-702.9,0.00041369,14]
[354562962,1740575454308,-1248.91,0.00041369,14]
[354562963,1740575454317,-500.0,0.00041369,14]
[354562964,1740575454326,-1531.15,0.00041369,14]
[354562965,1740575454336,-913.79,0.00041369,14]
[354562966,1740575454346,-1347.25,0.00041369,14]
[354562967,1740575454355,-729.69,0.00041369,14]
[354562968,1740575454365,-602.42,0.00041369,14]
[354562969,1740575454375,-500.0,0.00041369,14]
[354562970,1740575454385,-500.0,0.00041369,14]
[354562971,1740575454395,-500.0,0.00041369,14]
[354562972,1740575454405,-1314.54,0.00041369,14]
[354562973,1740575454414,-627.26,0.00041369,14]
[354562974,1740575454423,-1381.62,0.00041369,14]
[354562975,1740575454433,-500.0,0.00041369,14]
[354562976,1740575454442,-511.11349447,0.00041369,14]
[354562977,1740575454452,-1261.1,0.00041369,14]
[354562978,1740575454461,-500.0,0.00041369,14]
[354562979,1740575454470,-500.0,0.00041369,14]
[354562980,1740575454480,-531.86,0.00041369,14]
[354562981,1740575454489,-809.32,0.00041369,14]
[354562982,1740575454499,-500.0,0.00041369,14]
[354562983,1740575454508,-734.42,0.00041369,14]
[354562984,1740575454517,-500.0,0.00041369,14]
[354562985,1740575454526,-553.81,0.00041369,14]
[354562986,1740575454535,-500.0,0.00041369,14]
[354562987,1740575454545,-500.0,0.00041369,14]
[354562988,1740575454555,-500.0,0.00041369,14]
[354562989,1740575454564,-500.0,0.00041369,14]
[354562990,1740575454574,-500.0,0.00041369,14]
[354562991,1740575454583,-1357.63,0.00041369,14]
[354562992,1740575454592,-500.0,0.00041369,14]
[354562993,1740575454602,-1320.3,0.00041369,14]
[354562994,1740575454611,-550.13,0.00041369,14]
[354562995,1740575454620,-764.26,0.00041369,14]
[354562996,1740575454630,-500.0,0.00041369,14]
[354562997,1740575454640,-903.73,0.00041369,14]
[354562998,1740575454649,-707.07,0.00041369,14]
[354562999,1740575454658,-500.0,0.00041369,14]
[354563000,1740575454668,-863.36,0.00041369,14]
[354563001,1740575454677,-281.9847693,0.00041369,14]
[354563002,1740575454686,-1146.24,0.00041369,14]
[354563003,1740575454696,-1287.9,0.00041369,14]
[354563004,1740575454705,-992.98,0.00041369,14]
[354563005,1740575454714,-500.0,0.00041369,14]
[354563006,1740575454723,-773.71,0.00041369,14]
[354563007,1740575454733,-895.24,0.00041369,14]
[354563008,1740575454742,-500.0,0.00041369,14]
[354563009,1740575454752,-1972.49,0.00041369,14]
[354563010,1740575454761,-605.29,0.00041369,14]
[354563011,1740575454771,-580.7,0.00041369,14]
[354563012,1740575454780,-1308.68,0.00041369,14]
[354563013,1740575454789,-500.0,0.00041369,14]
[354563014,1740575454798,-500.0,0.00041369,14]
[354563015,1740575454807,-500.0,0.00041369,14]
[354563016,1740575454817,-500.0,0.00041369,14]
[354563017,1740575454826,-500.0,0.00041369,14]
[354563018,1740575454835,-920.33,0.00041369,14]
[354563019,1740575454845,-500.0,0.00041369,14]
[354563020,1740575454855,-500.0,0.00041369,14]
[354563021,1740575454864,-1148.29,0.00041369,14]
[354563022,1740575454873,-500.0,0.00041369,14]
[354563023,1740575454883,-500.0,0.00041369,14]
[354563024,1740575454893,-1314.17,0.00041369,14]
[354563025,1740575454902,-500.0,0.00041369,14]
[354563026,1740575454911,-500.0,0.00041369,14]
[354563027,1740575454921,-505.6,0.00041369,14]
[354563028,1740575454930,-1250.82,0.00041369,14]
[354563029,1740575454942,-500.0,0.00041369,14]
[354563030,1740575454952,-649.48,0.00041369,14]
[354563031,1740575454962,-500.0,0.00041369,14]
[354563032,1740575454971,-561.5,0.00041369,14]
[354563033,1740575454981,-1488.7,0.00041369,14]
[354563034,1740575454991,-500.0,0.00041369,14]
[354563035,1740575455001,-500.0,0.00041369,14]
[354563036,1740575455010,-1295.92,0.00041369,14]
[354563037,1740575455021,-500.0,0.00041369,14]
[354563038,1740575455030,-500.0,0.00041369,14]
[354563039,1740575455039,-1165.14,0.00041369,14]
[354563040,1740575455048,-968.52,0.00041369,14]
[354563041,1740575455058,-515.66934798,0.00041369,14]
[354563042,1740575455067,-2394.18,0.00041369,14]
[354563043,1740575455165,-550.93,0.00041369,14]
[354563044,1740575455175,-739.5,0.00041369,14]
[354563045,1740575455184,-500.0,0.00041369,14]
[354563046,1740575455193,-500.0,0.00041369,14]
[354563047,1740575455202,-500.0,0.00041369,14]
[354563048,1740575455212,-500.0,0.00041369,14]
[354563049,1740575455220,-500.0,0.00041369,14]
[354563050,1740575455230,-882.04,0.00041369,14]
[354563051,1740575455239,-1737.07,0.00041369,14]
[354563052,1740575455247,-500.0,0.00041369,14]
[354563053,1740575455256,-500.0,0.00041369,14]
[354563054,1740575455266,-500.0,0.00041369,14]
[354563055,1740575455275,-500.0,0.00041369,14]
[354563056,1740575455284,-500.0,0.00041369,14]
[354563057,1740575455293,-500.0,0.00041369,14]
[354563058,1740575455302,-1813.28,0.00041369,14]
[354563059,1740575455311,-533.87515314,0.00041369,14]
[354563060,1740575455320,-500.0,0.00041369,14]
[354563061,1740575455329,-1191.64,0.00041369,14]
[354563062,1740575455339,-549.52,0.00041369,14]
[354563063,1740575455349,-1425.25,0.00041369,14]
[354563064,1740575455358,-1247.26,0.00041369,14]
[354563065,1740575455367,-500.0,0.00041369,14]
[354563066,1740575455377,-546.07564109,0.00041369,14]
[354563067,1740575455386,-2623.84,0.00041369,14]
[354563068,1740575455395,-593.06,0.00041369,14]
[354563069,1740575455404,-509.89068778,0.00041369,14]
[354563070,1740575455414,-526.69,0.00041369,14]
[354563071,1740575455423,-754.26,0.00041369,14]
[354563072,1740575455432,-260.32110794,0.00041369,14]
[354563073,1740575455441,-756.25,0.00041369,14]
[354563074,1740575455450,-894.97,0.00041369,14]
[354563075,1740575455459,-915.4,0.00041369,14]
[354563076,1740575455468,-1522.56,0.00041369,14]
[354563077,1740575455477,-1819.24,0.00041369,14]
[354563078,1740575455486,-2186.44,0.00041369,14]
[354563079,1740575455495,-643.85,0.00041369,14]
[354563080,1740575455504,-500.0,0.00041369,14]
[354563081,1740575455513,-973.28,0.00041369,14]
[354563082,1740575455522,-500.0,0.00041369,14]
[354563083,1740575455531,-706.59,0.00041369,14]
[354563084,1740575455539,-2103.28,0.00041369,14]
[354563085,1740575455549,-535.5,0.00041369,14]
[354563086,1740575455558,-1183.18,0.00041369,14]
[354563087,1740575455567,-2051.37,0.00041369,14]
[354563088,1740575455576,-1466.86,0.00041369,14]
[354563089,1740575455585,-500.0,0.00041369,14]
[354563090,1740575455595,-999.83,0.00041369,14]
[354563091,1740575455604,-500.0,0.00041369,14]
[354563092,1740575455614,-1945.87,0.00041369,14]
[354563093,1740575455623,-744.99,0.00041369,14]
[354563094,1740575455633,-903.45,0.00041369,14]
[354563095,1740575455642,-500.0,0.00041369,14]
[354563096,1740575455652,-1448.97,0.00041369,14]
[354563097,1740575455661,-500.0,0.00041369,14]
[354563098,1740575455670,-500.0,0.00041369,14]
[354563099,1740575455679,-521.87,0.00041369,14]
[354563100,1740575455688,-500.0,0.00041369,14]
[354563101,1740575455697,-1832.03,0.00041369,14]
[354563102,1740575455706,-1000.0,0.00041369,120]
[354563103,1740575455715,-500.0,0.00041369,14]
[354563104,1740575455724,-500.0,0.00041369,14]
[354563105,1740575455734,-500.0,0.00041369,14]
[354563106,1740575455744,-1653.58,0.00041369,14]
[354563107,1740575455753,-621.69,0.00041369,14]
[354563108,1740575455762,-500.0,0.00041369,14]
[354563109,1740575455771,-1222.32,0.00041369,14]
[354563110,1740575455780,-1696.99,0.00041369,14]
[354563111,1740575455790,-1073.65,0.00041369,14]
[354563112,1740575455799,-718.91,0.00041369,14]
[354563113,1740575455808,-500.0,0.00041369,14]
[354563114,1740575455817,-500.0,0.00041369,14]
[354563115,1740575455827,-500.0,0.00041369,14]
[354563116,1740575455836,-1881.93,0.00041369,14]
[354563117,1740575455845,-1666.29,0.00041369,14]
[354563118,1740575455854,-500.0,0.00041369,14]
[354563119,1740575455863,-2374.87,0.00041369,14]
[354563120,1740575455872,-500.0,0.00041369,14]
[354563121,1740575455883,-849.09,0.00041369,14]
[354563122,1740575455893,-500.0,0.00041369,14]
[354563123,1740575455902,-500.0,0.00041369,14]
[354563124,1740575455911,-500.0,0.00041369,14]
[354563125,1740575455920,-1978.98,0.00041369,14]
[354563126,1740575455931,-500.0,0.00041369,14]
[354563127,1740575455942,-1159.79,0.00041369,14]
[354563128,1740575455952,-679.32,0.00041369,14]
[354563129,1740575455962,-1203.82,0.00041369,14]
[354563130,1740575455971,-1015.25,0.00041369,14]
[354563131,1740575455980,-1017.09,0.00041369,14]
[354563132,1740575455990,-537.83,0.00041369,120]
[354563133,1740575455999,-1679.5,0.00041369,14]
[354563134,1740575456008,-1012.36,0.00041369,14]
[354563135,1740575456018,-1380.05,0.00041369,14]
[354563136,1740575456027,-550.52,0.00041369,14]
[354563137,1740575456036,-1166.6,0.00041369,14]
[354563138,1740575456045,-732.56,0.00041369,14]
[354563139,1740575456054,-500.0,0.00041369,14]
[354563140,1740575456063,-1526.22,0.00041369,14]
[354563141,1740575456072,-4181.4,0.00041369,14]
[354563142,1740575456081,-566.05,0.00041369,14]
[354563143,1740575456090,-969.41,0.00041369,14]
[354563144,1740575456099,-1676.7,0.00041369,14]
[354563145,1740575456108,-1372.45,0.00041369,14]
[354563146,1740575456117,-956.34,0.00041369,14]
[354563147,1740575456126,-2177.84,0.00041369,14]
[354563148,1740575456138,-619.99,0.00041369,14]
[354563149,1740575456147,-990.51,0.00041369,14]
[354563150,1740575456156,-500.0,0.00041369,14]
[354563151,1740575456165,-1391.83,0.00041369,14]
[354563152,1740575456175,-1354.78,0.00041369,14]
[354563153,1740575456184,-500.0,0.00041369,14]
[354563154,1740575456193,-620.53,0.00041369,14]
[354563155,1740575456202,-576.4,0.00041369,14]
[354563156,1740575456212,-506.4,0.00041369,14]
[354563157,1740575456222,-1164.57,0.00041369,14]
[354563158,1740575456231,-984.48,0.00041369,14]
[354563159,1740575456240,-1325.11,0.00041369,14]
[354563160,1740575456249,-2722.0,0.00041369,14]
[354563161,1740575456258,-1297.62,0.00041369,14]
[354563162,1740575456267,-1602.01,0.00041369,14]
[354563163,1740575456276,-565.43805478,0.00041369,14]
[354563164,1740575456286,-735.22,0.00041369,14]
[354563165,1740575456295,-959.29,0.00041369,14]
[354563166,1740575456304,-1014.09,0.00041369,14]
[354563167,1740575456312,-913.12,0.00041369,14]
[354563168,1740575456322,-1712.43,0.00041369,14]
[354563169,1740575456331,-1336.28,0.00041369,14]
[354563170,1740575456341,-500.0,0.00041369,14]
[354563171,1740575456350,-500.0,0.00041369,14]
[354563172,1740575456358,-500.0,0.00041369,14]
[354563173,1740575456367,-500.0,0.00041369,14]
[354563174,1740575456376,-802.49,0.00041369,14]
[354563175,1740575456387,-500.0,0.00041369,14]
[354563176,1740575456396,-442.55330852,0.00041369,14]
[354563177,1740575456405,-1228.7,0.00041369,14]
[354563178,1740575456415,-1188.3,0.00041369,14]
[354563179,1740575456424,-500.0,0.00041369,14]
[354563180,1740575456434,-500.0,0.00041369,14]
[354563181,1740575456443,-921.0,0.00041369,14]
[354563182,1740575456452,-820.99,0.00041369,14]
[354563183,1740575456462,-500.0,0.00041369,14]
[354563184,1740575456471,-658.94,0.00041369,14]
[354563185,1740575456480,-510.93,0.00041369,14]
[354563186,1740575456490,-1523.08,0.00041369,14]
[354563187,1740575456499,-705.45,0.00041369,14]
[354563188,1740575456509,-1103.43,0.00041369,14]
[354563189,1740575456518,-500.0,0.00041369,14]
[354563190,1740575456527,-500.0,0.00041369,14]
[354563191,1740575456536,-906.24,0.00041369,14]
[354563192,1740575456546,-500.0,0.00041369,14]
[354563193,1740575456555,-2267.38,0.00041369,14]
[354563194,1740575456564,-554.24,0.00041369,14]
[354563195,1740575456574,-1217.23,0.00041369,14]
[354563196,1740575456583,-2190.12,0.00041369,14]
[354563197,1740575456592,-1682.13,0.00041369,14]
[354563198,1740575456601,-500.0,0.00041369,14]
[354563199,1740575456610,-500.0,0.00041369,14]
[354563200,1740575456619,-602.54,0.00041369,14]
[354563201,1740575456629,-500.0,0.00041369,14]
[354563202,1740575456639,-495.19438091,0.00041369,14]
[354563203,1740575456648,-504.45,0.00041369,14]
[354563204,1740575456657,-1655.77,0.00041369,14]
[354563205,1740575456666,-573.69,0.00041369,14]
[354563206,1740575456675,-1121.14,0.00041369,14]
[354563207,1740575456684,-3019.3,0.00041369,14]
[354563208,1740575456692,-708.68,0.00041369,14]
[354563209,1740575456701,-500.0,0.00041369,14]
[354563210,1740575456710,-500.0,0.00041369,14]
[354563211,1740575456719,-500.0,0.00041369,14]
[354563212,1740575456727,-500.0,0.00041369,14]
[354563213,1740575456737,-500.0,0.00041369,14]
[354563214,1740575456746,-500.0,0.00041369,14]
[354563215,1740575456755,-1929.03,0.00041369,14]
[354563216,1740575456764,-500.0,0.00041369,14]
[354563217,1740575456773,-1582.05,0.00041369,14]
[354563218,1740575456782,-505.24802267,0.00041369,14]
[354563219,1740575456791,-500.0,0.00041369,14]
[354563220,1740575456800,-509.80018505,0.00041369,14]
[354563221,1740575456810,-727.35,0.00041369,14]
[354563222,1740575456819,-500.0,0.00041369,14]
[354563223,1740575456828,-1975.6,0.00041369,14]
[354563224,1740575456838,-515.41085905,0.00041369,7]
[354563225,1740575456847,-538.51,0.00041369,14]
[354563226,1740575456856,-1048.24,0.00041369,14]
[354563227,1740575456865,-158.96985337,0.00041369,14]
[354563228,1740575456875,-549.33900841,0.00041369,14]